bitfinex/quotes_ETHUSD_20241023
["timestamp","ask_amount","ask_price","bid_price","bid_amount"]
[1729663611174,0.7583,2618.2,2617.8,4.2364622]
[1729663611701,0.7583,2618.2,2617.8,8.56083388]
[1729663611860,0.7583,2618.2,2617.8,10.41508705]
[1729663612061,0.7583,2618.2,2617.8,8.73016317]
[1729663612595,0.7583,2618.2,2617.8,10.41508705]
[1729663612809,0.7583,2618.2,2617.8,8.73016317]
[1729663615120,0.7583,2618.2,2617.9,3.43785]
[1729663615406,0.7583,2618.2,2617.9,4.5570407]
[1729663617712,0.7583,2618.2,2618.0,3.4377]
[1729663617871,0.7651,2618.4,2618.0,3.4377]
[1729663618067,0.7651,2618.4,2617.9,2.80411458]
[1729663618276,0.7651,2618.4,2618.1,3.43751]
[1729663619209,0.7651,2618.4,2618.0,3.43773]
[1729663619421,2.45002388,2618.4,2618.0,3.43773]
[1729663619572,0.7651,2618.1,2617.8,0.7984822]
[1729663619980,0.7651,2618.1,2617.7,4.2366022]
[1729663620195,0.7651,2618.1,2617.7,5.53574595]
[1729663620426,0.7651,2618.1,2617.7,4.73726375]
[1729663620614,0.7651,2618.1,2617.7,5.53574595]
[1729663621180,0.7651,2618.1,2617.8,3.438]
[1729663621524,0.7651,2618.1,2617.7,2.09762595]
[1729663621721,0.7651,2618.1,2617.7,5.53569595]
[1729663622194,0.7651,2618.1,2617.7,2.09762595]
[1729663622367,0.7651,2618.1,2617.8,3.43798]
[1729663622571,0.7651,2618.1,2617.7,4.73726375]
[1729663622772,3.43775,2618.0,2617.5,5.92171608]
[1729663623134,0.7651,2618.1,2617.7,3.43812]
[1729663623275,0.7651,2618.1,2617.7,6.87617]
[1729663623877,0.7651,2618.1,2617.8,3.43796]
[1729663624626,0.7651,2618.1,2617.7,8.56102388]
[1729663624919,4.20271,2618.1,2617.7,3.43805]
[1729663625372,0.7651,2618.1,2617.7,3.43805]
[1729663626676,0.7651,2618.1,2617.7,5.12297388]
[1729663627178,0.7651,2618.1,2617.7,8.56103388]
[1729663627406,0.7651,2618.1,2617.7,6.14194549]
[1729663629007,0.7651,2618.5,2618.0,1.68492388]
[1729663629207,4.20228,2618.5,2618.0,1.68492388]
[1729663629519,4.20223,2618.5,2618.0,1.68492388]
[1729663629849,4.20223,2618.5,2617.9,4.2362222]
[1729663629850,0.7651,2618.5,2617.9,4.2362222]
[1729663630017,0.7651,2618.5,2618.1,3.43753]
[1729663633290,0.7651,2618.5,2618.1,4.37340061]
[1729663635226,0.7651,2618.5,2618.2,3.43746]
[1729663635789,0.7651,2618.5,2618.1,4.37340061]
[1729663635790,0.7651,2618.5,2618.1,0.93587061]
[1729663636017,0.7651,2618.5,2618.1,3.4376]
[1729663636223,0.7651,2618.5,2618.1,6.87513]
[1729663636437,0.7651,2618.5,2618.1,3.51391365]
[1729663636621,0.7651,2618.5,2618.1,3.43753]
[1729663637199,0.7651,2618.5,2618.1,5.12245388]
[1729663637439,0.7651,2618.5,2618.1,4.02961361]
[1729663637645,0.7651,2618.5,2618.1,7.46714361]
[1729663637844,0.7651,2618.5,2618.1,9.22845141]
[1729663638071,0.7651,2618.5,2618.1,9.15206749]
[1729663639479,0.7651,2618.5,2618.1,5.71453749]
[1729663639985,0.7651,2618.5,2618.2,3.43747]
[1729663640984,0.7651,2618.5,2618.2,5.12231388]
[1729663641190,0.7651,2618.5,2618.3,3.43734]
[1729663641580,0.7651,2618.5,2618.2,0.91519275]
[1729663642153,0.7651,2618.5,2618.2,4.35263275]
[1729663645008,1.68492388,2618.4,2618.0,3.43771]
[1729663645205,3.0,2619.0,2617.7,2.62150937]
[1729663645206,1.68492388,2618.1,2617.7,0.7984822]
[1729663645401,0.765,2618.1,2617.7,3.43812]
[1729663645552,0.765,2618.1,2617.7,5.8905291]
[1729663645879,0.765,2618.1,2617.8,2.98]
[1729663646286,4.20261,2618.1,2617.8,2.98]
[1729663646996,0.765,2618.1,2617.7,4.20560522]
[1729663650959,0.765,2618.1,2617.7,0.76748522]
[1729663651159,0.765,2618.1,2617.8,3.43797]
[1729663651368,0.765,2618.1,2617.9,3.43786]
[1729663655103,0.765,2618.3,2617.9,3.43786]
[1729663655287,0.765,2618.3,2617.9,6.87565]
[1729663655486,0.765,2618.3,2617.9,3.43779]
[1729663656729,0.765,2618.1,2617.5,5.0663922]
[1729663656895,0.765,2618.1,2617.7,3.43812]
[1729663657992,0.765,2618.1,2617.7,3.43802]
[1729663659029,0.765,2618.1,2617.7,6.87608]
[1729663659416,0.765,2618.1,2617.7,3.43802]
[1729663659725,0.765,2618.1,2617.7,7.5739276]
[1729663660085,0.765,2618.1,2617.7,4.1358776]
[1729663660622,0.765,2618.1,2617.5,5.2939221]
[1729663660623,0.7503,2617.8,2617.5,1.0260321]
[1729663660784,0.7503,2617.8,2617.5,3.43838]
[1729663661631,0.7503,2617.8,2617.4,3.43844]
[1729663661846,5.87324388,2617.8,2617.4,3.43844]
[1729663662126,0.7503,2617.7,2617.4,3.43844]
[1729663662326,0.7503,2617.7,2617.3,3.43858]
[1729663662485,0.7503,2617.7,2617.3,4.29480139]
[1729663663235,0.7503,2617.7,2617.3,3.43858]
[1729663666238,0.7503,2617.7,2617.4,3.43852]
[1729663666437,0.7503,2617.7,2617.2,3.43871]
[1729663666736,0.7503,2617.7,2617.3,3.43865]
[1729663674818,0.7503,2617.7,2617.4,3.43848]
[1729663675024,0.7503,2617.7,2617.4,4.29468539]
[1729663675339,0.7503,2617.7,2617.5,3.43838]
[1729663679937,0.7503,2617.7,2617.4,0.85620539]
[1729663681441,0.7503,2617.7,2617.4,4.29469539]
[1729663684407,0.7503,2617.7,2617.4,0.85620539]
[1729663685803,0.7503,2617.7,2617.4,4.29470539]
[1729663686016,0.7503,2617.7,2617.5,0.94181993]
[1729663686567,0.7503,2617.7,2617.4,3.4385]
[1729663689696,0.7503,2617.7,2617.2,5.93349388]
[1729663689997,0.7503,2617.7,2617.3,3.43864]
[1729663692329,0.7503,2617.7,2617.2,5.93349388]
[1729663692503,3.43834,2617.6,2617.1,3.43881]
[1729663692826,1.68492388,2617.8,2617.0,4.2374322]
[1729663692827,4.25657,2617.5,2617.0,4.2374322]
[1729663693231,4.25657,2617.5,2617.0,5.92235608]
[1729663693407,4.25657,2617.5,2617.0,4.2374322]
[1729663693590,4.25657,2617.5,2617.1,6.64892]
[1729663693930,4.25657,2617.5,2617.1,3.21]
[1729663694130,4.25657,2617.5,2617.0,5.92235608]
[1729663694426,4.25657,2617.5,2617.0,9.36133608]
[1729663694632,4.25657,2617.5,2617.0,5.92235608]
[1729663694927,4.25657,2617.5,2617.1,3.43889]
[1729663695514,0.8181,2617.5,2617.1,5.12381388]
[1729663695705,4.25649,2617.5,2617.1,3.43889]
[1729663696101,4.25649,2617.5,2617.0,0.7984822]
[1729663696307,4.25649,2617.5,2617.1,3.21]
[1729663696835,4.25649,2617.5,2617.1,3.43891]
[1729663696836,0.8181,2617.5,2617.1,3.43891]
[1729663699807,0.8181,2617.5,2617.1,6.87776]
[1729663700948,0.8181,2617.5,2617.2,3.43878]
[1729663702850,0.8181,2617.5,2617.3,3.43863]
[1729663704228,0.8181,2617.7,2617.3,3.43856]
[1729663704526,0.8181,2617.7,2617.4,3.43851]
[1729663705134,0.8181,2617.7,2617.3,3.43856]
[1729663712360,0.8181,2617.7,2617.3,6.87715]
[1729663712556,0.8181,2617.7,2617.3,3.43856]
[1729663713702,0.8181,2617.7,2617.4,3.4384]
[1729663717572,0.8181,2617.7,2617.4,4.3820973]
[1729663717817,0.8207,2618.1,2617.7,3.43805]
[1729663717992,5.94324388,2618.1,2617.6,3.43819]
[1729663718171,0.8207,2618.1,2617.7,3.43801]
[1729663718375,0.8207,2618.1,2617.8,3.43799]
[1729663719376,0.8207,2618.1,2617.7,3.43813]
[1729663719904,0.8207,2618.1,2617.8,3.43797]
[1729663725921,2.50562388,2618.1,2617.8,3.43797]
[1729663729520,2.50562388,2618.1,2617.6,4.6654807]
[1729663729684,2.50562388,2618.1,2617.7,3.43812]
[1729663729885,1.68492388,2618.0,2617.6,1.2272907]
[1729663730110,1.68492388,2618.0,2617.7,3.43812]
[1729663730311,2.50562388,2618.1,2617.7,6.87617]
[1729663730525,2.50562388,2618.1,2617.7,3.43805]
[1729663731744,2.50562388,2618.1,2617.7,6.87612]
[1729663733403,0.8207,2618.1,2617.8,3.4379]
[1729663733603,0.8207,2618.1,2617.8,4.29398739]
[1729663734029,2.50562388,2618.1,2617.8,4.29398739]
[1729663734225,2.50562388,2618.1,2617.8,3.4379]
[1729663734226,0.8207,2618.1,2617.8,3.4379]
[1729663735634,2.50562388,2618.1,2617.8,3.4379]
[1729663736140,0.8207,2618.1,2617.8,3.4379]
[1729663746663,0.8207,2618.1,2617.6,3.43825]
[1729663746868,0.8207,2618.1,2617.7,3.43812]
[1729663748557,5.12241388,2618.2,2617.7,3.43812]
[1729663748762,0.8271,2618.1,2617.7,3.43812]
[1729663753726,0.8271,2618.1,2617.8,3.43797]
[1729663762013,0.8271,2618.1,2617.8,3.43791]
[1729663764557,0.8271,2618.1,2617.8,6.87582]
[1729663764757,0.8271,2618.1,2617.8,6.87584]
[1729663765280,0.8271,2618.1,2617.8,3.43791]
[1729663765486,1.68492388,2618.2,2617.8,3.43791]
[1729663765487,1.68492388,2618.2,2617.9,3.43785]
[1729663766591,0.7842,2618.3,2617.9,3.43779]
[1729663766794,0.7842,2618.3,2618.0,3.43773]
[1729663766795,2.46912388,2618.3,2618.0,3.43773]
[1729663767459,2.46912388,2618.3,2618.0,3.43772]
[1729663769802,1.68492388,2618.2,2617.9,3.43786]
[1729663771492,2.46912388,2618.3,2617.8,5.0263622]
[1729663771812,1.68492388,2618.2,2617.9,3.43777]
[1729663772002,2.46912388,2618.3,2617.9,3.43777]
[1729663773813,2.46912388,2618.3,2618.0,3.43766]
[1729663778977,2.46912388,2618.3,2618.1,3.43757]
[1729663779811,2.46912388,2618.5,2618.1,3.43753]
[1729663780010,2.46912388,2618.5,2618.2,3.43741]
[1729663780379,1.68492388,2618.4,2618.2,3.43741]
[1729663781573,2.46912388,2618.5,2618.2,3.43741]
[1729663781792,2.46912388,2618.5,2618.2,4.204944]
[1729663782082,1.68492388,2618.4,2618.2,4.204944]
[1729663783295,1.68492388,2618.6,2618.3,3.43734]
[1729663784046,1.68492388,2618.5,2618.3,3.43734]
[1729663784726,0.7588,2618.7,2618.3,3.43734]
[1729663784727,1.68492388,2618.6,2618.3,3.43734]
[1729663786113,1.68492388,2618.6,2618.3,6.87462]
[1729663786476,2.44372388,2618.7,2618.3,4.13238032]
[1729663786689,2.44372388,2618.7,2618.4,3.43721]
[1729663788518,2.44372388,2618.7,2618.5,3.43707]
[1729663790176,1.68492388,2618.6,2618.5,3.43707]
[1729663790781,1.68492388,2618.6,2618.4,3.4372]
[1729663791218,0.7588,2618.7,2618.4,3.4372]
[1729663791219,2.44372388,2618.7,2618.4,3.4372]
[1729663792930,0.7588,2618.7,2618.4,4.27419803]
[1729663793086,2.44372388,2618.7,2618.4,4.27419803]
[1729663795530,2.44372388,2618.7,2618.4,3.4372]
[1729663796933,0.7588,2618.7,2618.4,3.4372]
[1729663797088,3.43657,2618.9,2618.4,6.87433]
[1729663797089,1.68492388,2618.8,2618.4,6.87433]
[1729663797288,1.68492388,2618.8,2618.4,6.95063448]
[1729663797525,1.68492388,2618.8,2618.5,0.84461348]
[1729663798636,1.68492388,2618.7,2618.5,0.84461348]
[1729663800999,3.43669,2618.8,2618.5,0.84461348]
[1729663801000,1.68492388,2618.6,2618.5,0.84461348]
[1729663801201,1.68492388,2618.7,2618.5,0.84461348]
[1729663801533,1.68492388,2618.7,2618.4,3.43713]
[1729663802533,0.8155,2618.9,2618.4,3.5134841]
[1729663802704,1.68492388,2618.8,2618.4,3.43711]
[1729663803036,1.68492388,2618.8,2618.5,3.43707]
[1729663803401,1.68492388,2618.8,2618.5,4.204528]
[1729663805395,1.68492388,2618.8,2618.6,3.43694]
[1729663807647,1.68492388,2618.8,2618.5,4.204528]
[1729663813668,2.50042388,2618.9,2618.5,4.204528]
[1729663814474,0.8155,2618.9,2618.5,4.204528]
[1729663814775,0.7764,2619.1,2618.7,3.43675]
[1729663815065,2.46132388,2619.1,2618.7,3.43675]
[1729663815265,2.46132388,2619.1,2618.7,3.51311624]
[1729663815566,0.7764,2619.1,2618.8,3.43667]
[1729663816148,2.46132388,2619.1,2618.8,3.43667]
[1729663817235,2.46132388,2619.1,2618.7,3.51317624]
[1729663818477,2.46132388,2619.1,2618.7,4.45862039]
[1729663818781,0.7764,2619.1,2618.8,3.43667]
[1729663819668,0.7764,2619.1,2618.7,1.02189039]
[1729663819669,2.46132388,2619.1,2618.7,4.45870039]
[1729663819859,1.68492388,2619.0,2618.7,4.45870039]
[1729663820242,2.46132388,2619.1,2618.7,4.45870039]
[1729663820686,2.46132388,2619.1,2618.8,0.87153404]
[1729663820843,0.7764,2619.1,2618.8,0.87153404]
[1729663821049,1.68492388,2619.0,2618.8,0.87153404]
[1729663821371,5.89768388,2619.1,2618.8,0.87153404]
[1729663821574,0.7764,2618.8,2618.4,3.43715]
[1729663821782,1.68492388,2618.7,2618.4,3.43715]
[1729663821962,2.46132388,2618.8,2618.4,3.43715]
[1729663823352,0.7764,2618.8,2618.4,3.43715]
[1729663823551,0.7764,2618.8,2618.5,0.425695]
[1729663824065,2.46132388,2618.8,2618.5,0.425695]
[1729663824667,1.68492388,2618.7,2618.5,0.425695]
[1729663824867,4.21309,2618.8,2618.3,4.25711]
[1729663824868,5.89801388,2618.8,2618.3,4.25711]
[1729663825791,2.46132388,2618.8,2618.4,3.43716]
[1729663825965,2.46132388,2618.8,2618.3,4.25711]
[1729663826355,1.68492388,2618.7,2618.3,4.25711]
[1729663827395,1.68492388,2618.7,2618.3,4.25705]
[1729663827591,1.68492388,2618.7,2618.4,0.50555322]
[1729663827768,5.89802388,2618.8,2618.4,0.50555322]
[1729663828153,1.68492388,2618.7,2618.3,4.25705]
[1729663829202,5.12174388,2618.7,2618.3,4.25705]
[1729663831663,1.68492388,2618.6,2618.3,0.8198]
[1729663832404,1.68492388,2618.6,2618.1,7.6734822]
[1729663832405,1.68492388,2618.6,2618.2,3.43742]
[1729663832898,5.12187388,2618.6,2618.2,3.43742]
[1729663834004,1.68492388,2618.4,2618.0,4.2360822]
[1729663834167,1.68492388,2618.4,2618.0,6.87526]
[1729663834368,1.68492388,2618.3,2618.0,4.71002434]
[1729663834575,1.68492388,2618.3,2617.8,0.7984822]
[1729663834576,1.68492388,2618.1,2617.8,0.7984822]
[1729663834767,0.7817,2618.2,2617.8,3.43788]
[1729663835095,4.21918,2618.2,2617.7,4.25743]
[1729663835465,4.21918,2618.2,2617.5,8.4943922]
[1729663835466,3.43762,2618.1,2617.5,8.4943922]
[1729663835786,1.68492388,2617.8,2617.5,1.6177822]
[1729663836102,0.7817,2617.9,2617.4,3.43852]
[1729663836103,1.68492388,2617.7,2617.4,4.2370022]
[1729663836321,4.21965,2617.9,2617.4,4.40791958]
[1729663836322,1.68492388,2617.8,2617.4,4.40791958]
[1729663836614,4.21965,2617.9,2617.5,3.43837]
[1729663836615,5.90457388,2617.9,2617.5,3.43837]
[1729663836804,0.7817,2617.9,2617.5,3.43837]
[1729663837177,2.46662388,2617.9,2617.5,3.43837]
[1729663838511,0.7817,2617.9,2617.5,3.43837]
[1729663839509,2.46662388,2617.9,2617.5,3.43837]
[1729663839708,0.7817,2617.9,2617.5,3.43837]
[1729663840282,2.46662388,2617.9,2617.5,3.43837]
[1729663840707,5.88803388,2617.8,2617.4,0.07640323]
[1729663840884,1.68492388,2617.7,2617.3,3.43862]
[1729663841768,5.12307388,2617.7,2617.2,3.43877]
[1729663841986,5.88795388,2617.8,2617.3,3.43864]
[1729663842383,1.68492388,2617.7,2617.3,3.43864]
[1729663842567,5.88795388,2617.8,2617.3,3.43864]
[1729663843205,4.20303,2617.8,2617.3,3.43864]
[1729663843395,5.88795388,2617.8,2617.3,3.43864]
[1729663845318,5.88795388,2617.8,2617.3,4.20694]
[1729663849011,1.68492388,2617.7,2617.3,4.20694]
[1729663849211,1.68492388,2617.7,2617.3,4.96764817]
[1729663849411,5.88795388,2617.8,2617.3,4.96764817]
[1729663850699,1.68492388,2617.7,2617.3,4.96764817]
[1729663850893,4.20303,2617.8,2617.3,4.96764817]
[1729663851106,5.88795388,2617.8,2617.3,4.96764817]
[1729663854238,1.68492388,2617.7,2617.3,4.96764817]
[1729663854536,1.68492388,2617.4,2617.0,4.20729]
[1729663854833,5.12333388,2617.5,2617.1,3.21]
[1729663855131,5.12333388,2617.5,2617.0,4.20729]
[1729663855382,1.68492388,2617.4,2617.0,5.14042439]
[1729663855635,5.12333388,2617.5,2617.0,5.14042439]
[1729663856137,1.68492388,2617.4,2617.0,1.70143439]
[1729663856297,1.68492388,2617.4,2617.0,4.20734]
[1729663858114,5.12333388,2617.5,2617.0,4.20734]
[1729663858447,1.68492388,2617.4,2617.0,4.20734]
[1729663858614,5.12346388,2617.4,2617.0,4.20734]
[1729663859144,5.12346388,2617.4,2617.0,0.7683]
[1729663863354,5.12346388,2617.4,2617.0,1.35753939]
[1729663865218,1.68492388,2617.3,2617.0,1.35753939]
[1729663865418,5.12346388,2617.4,2617.0,1.35753939]
[1729663865645,5.12346388,2617.4,2617.0,0.7683]
[1729663866728,5.12346388,2617.4,2617.0,4.20734]
[1729663866952,5.12346388,2617.4,2617.0,0.7683]
[1729663867568,1.68492388,2617.4,2617.0,4.20734]
[1729663867886,5.12346388,2617.4,2617.0,0.7683]
[1729663869141,1.68492388,2617.4,2617.0,0.7683]
[1729663869469,1.68492388,2617.4,2617.0,4.20732]
[1729663869970,5.12350388,2617.4,2617.0,0.7683]
[1729663876688,1.68492388,2617.4,2617.0,4.79657739]
[1729663877041,5.12351388,2617.4,2617.0,1.35753739]
[1729663878083,1.68492388,2617.3,2617.0,1.35753739]
[1729663878735,5.12351388,2617.4,2617.0,1.35753739]
[1729663878942,1.68492388,2617.3,2617.0,1.35753739]
[1729663879539,3.43859,2617.4,2617.0,1.35753739]
[1729663879780,3.43866,2617.3,2617.0,1.35753739]
[1729663881082,5.12345388,2617.4,2617.0,1.35753739]
[1729663882085,3.43868,2617.3,2617.0,1.35753739]
[1729663883400,1.68492388,2617.4,2617.0,1.35753739]
[1729663883401,5.12350388,2617.4,2617.0,1.35753739]
[1729663883702,3.43866,2617.3,2617.0,1.35753739]
[1729663884902,1.68492388,2617.4,2617.0,1.35753739]
[1729663885277,5.12345388,2617.4,2617.0,1.35753739]
[1729663885975,1.68492388,2617.4,2617.0,1.35753739]
[1729663886162,5.12346388,2617.4,2617.0,1.35753739]
[1729663887772,8.56179388,2617.5,2617.0,4.79656739]
[1729663887989,8.56179388,2617.5,2617.0,1.35753739]
[1729663887990,3.43854,2617.4,2617.0,1.35753739]
[1729663890465,5.12346388,2617.4,2617.0,4.79657739]
[1729663890697,3.43854,2617.4,2617.0,4.79657739]
[1729663891216,3.43854,2617.4,2617.0,1.35753739]
[1729663891518,3.43854,2617.4,2617.0,4.79656739]
[1729663891685,3.43854,2617.4,2617.0,1.35753739]
[1729663893313,3.43867,2617.3,2617.0,1.35753739]
[1729663893771,5.12346388,2617.4,2617.0,1.35753739]
[1729663894193,3.43854,2617.4,2617.0,1.35753739]
[1729663894622,3.43854,2617.4,2617.0,4.79658739]
[1729663896828,6.87715,2617.4,2617.0,1.35753739]
[1729663898586,3.43854,2617.4,2617.0,4.79656739]
[1729663900227,6.87716,2617.4,2617.0,1.35753739]
[1729663900634,3.43854,2617.4,2617.0,1.35753739]
[1729663902132,6.87718,2617.4,2617.0,1.35753739]
[1729663903002,3.43854,2617.4,2617.0,4.79657739]
[1729663903827,6.87715,2617.4,2617.0,1.35753739]
[1729663904941,3.43854,2617.4,2617.0,1.35753739]
[1729663905238,3.43854,2617.4,2617.0,4.79654739]
[1729663905548,6.87714,2617.4,2617.0,1.35753739]
[1729663905745,3.43854,2617.4,2617.0,1.35753739]
[1729663906045,6.87716,2617.4,2617.0,1.35753739]
[1729663906815,3.43854,2617.4,2617.0,1.35753739]
[1729663909253,3.43854,2617.4,2617.0,4.79652739]
[1729663909952,3.43854,2617.4,2617.0,1.35753739]
[1729663910124,6.87717,2617.4,2617.0,0.7683]
[1729663911552,3.43854,2617.4,2617.0,0.7683]
[1729663916148,6.87714,2617.4,2617.0,0.7683]
[1729663916353,3.43854,2617.4,2617.0,0.7683]
[1729663916951,6.87715,2617.4,2617.0,0.7683]
[1729663918417,3.43854,2617.4,2617.0,0.7683]
[1729663920181,3.43854,2617.4,2617.0,4.20734]
[1729663920481,3.43854,2617.4,2617.0,0.7683]
[1729663921078,6.87713,2617.4,2617.0,0.7683]
[1729663921456,1.68492388,2617.3,2617.0,0.7683]
[1729663922253,5.12360388,2617.3,2617.0,0.7683]
[1729663922454,3.43868,2617.3,2617.0,0.7683]
[1729663922978,1.68492388,2617.3,2617.0,0.7683]
[1729663923290,1.68492388,2617.4,2617.0,4.82837345]
[1729663923779,5.12345388,2617.4,2617.0,1.38937345]
[1729663923987,5.12345388,2617.4,2617.0,0.7683]
[1729663925082,1.68492388,2617.4,2617.0,4.20734]
[1729663925451,1.68492388,2617.4,2617.0,0.7683]
[1729663925658,5.12349388,2617.4,2617.0,0.7683]
[1729663926791,1.68492388,2617.4,2617.0,5.0085958]
[1729663927460,1.68492388,2617.4,2617.0,4.28370453]
[1729663928922,1.68492388,2617.4,2617.0,4.20729]
[1729663929994,1.68492388,2617.4,2617.0,5.0085958]
[1729663930295,1.68492388,2617.4,2617.0,4.20729]
[1729663930590,1.68492388,2617.4,2617.0,5.0085958]
[1729663930796,1.68492388,2617.4,2617.0,4.20729]
[1729663931014,1.68492388,2617.4,2617.0,5.0085958]
[1729663931455,1.68492388,2617.4,2617.0,4.20729]
[1729663931858,1.68492388,2617.4,2617.0,5.0085958]
[1729663933508,3.43842,2617.5,2617.0,5.0085958]
[1729663933660,5.12346388,2617.4,2617.0,1.5696058]
[1729663934204,5.12346388,2617.4,2617.0,0.7683]
[1729663934377,1.68492388,2617.3,2617.0,0.7683]
[1729663944224,0.765,2617.6,2617.0,1.38936645]
[1729663944532,0.765,2617.6,2617.1,4.23936]
[1729663944533,1.68492388,2617.4,2617.1,4.23936]
[1729663944799,4.20327,2617.6,2617.1,0.8005]
[1729663944800,1.68492388,2617.3,2617.1,0.8005]
[1729663947008,5.12345388,2617.4,2617.1,0.8005]
[1729663948020,1.68492388,2617.3,2617.1,0.8005]
[1729663948898,1.68492388,2617.4,2617.1,0.8005]
[1729663950485,1.68492388,2617.4,2617.1,4.23939]
[1729663950983,1.68492388,2617.4,2617.1,0.8005]
[1729663953088,1.68492388,2617.4,2617.1,4.23932]
[1729663953237,1.68492388,2617.4,2617.1,1.76866245]
[1729663953449,4.03635775,2617.7,2617.6,3.43826]
[1729663953450,0.59812775,2617.7,2617.6,3.43826]
[1729663953647,4.2576,2618.2,2617.6,4.26856]
[1729663953798,4.2576,2618.2,2617.6,4.26847]
[1729663953799,1.68492388,2617.9,2617.6,4.26847]
[1729663954003,1.68492388,2617.8,2617.7,3.43811]
[1729663954942,1.68492388,2617.9,2617.7,3.43811]
[1729663955741,1.68492388,2617.8,2617.7,3.43811]
[1729663955911,4.25747,2618.2,2617.8,3.43795]
[1729663955912,0.82,2618.2,2617.8,3.43795]
[1729663956120,1.68492388,2618.1,2618.0,3.43772]
[1729663956425,0.82,2618.6,2617.9,4.2681]
[1729663956631,7.34,2618.8,2617.9,4.2681]
[1729663956632,0.82,2618.8,2618.3,3.43727]
[1729663956853,1.68492388,2618.6,2618.4,3.4371]
[1729663957225,1.68492388,2618.5,2618.4,3.4371]
[1729663957731,1.68492388,2618.6,2618.5,3.43704]
[1729663957958,1.68492388,2618.6,2618.4,3.4371]
[1729663958280,3.43656,2618.9,2618.4,3.4371]
[1729663958281,1.68492388,2618.5,2618.4,3.4371]
[1729663958426,1.68492388,2618.5,2618.2,4.2677]
[1729663958628,1.68492388,2618.3,2618.2,4.2677]
[1729663959650,1.68492388,2618.4,2618.2,4.2677]
[1729663959830,1.68492388,2618.3,2618.2,4.2677]
[1729663960674,1.68492388,2618.4,2618.3,3.43725]
[1729663965476,1.68492388,2618.5,2618.3,3.43725]
[1729663965830,3.43656,2618.9,2618.3,3.43725]
[1729663965831,1.68492388,2618.4,2618.3,3.43725]
[1729663967046,1.68492388,2618.4,2618.2,4.2677]
[1729663967047,1.68492388,2618.4,2618.2,3.4374]
[1729663967245,1.68492388,2618.4,2618.2,6.8748]
[1729663967446,1.68492388,2618.4,2618.0,0.8166]
[1729663967447,1.68492388,2618.4,2618.1,3.43759]
[1729663967646,1.68492388,2618.4,2618.3,3.43734]
[1729663968970,1.68492388,2618.4,2618.1,3.90562]
[1729663969175,1.68492388,2618.3,2618.1,3.90562]
[1729663969333,1.68492388,2618.3,2618.1,3.43752]
[1729663970576,1.68492388,2618.3,2618.2,3.43744]
[1729663973560,1.68492388,2618.3,2618.1,3.43752]
[1729663973753,4.26156,2618.6,2618.1,3.43752]
[1729663973754,1.68492388,2618.2,2618.1,3.43752]
[1729663975190,1.68492388,2618.3,2618.1,6.87504]
[1729663975377,1.68492388,2618.2,2618.1,3.43752]
[1729663975633,1.68492388,2618.3,2618.1,6.87505]
[1729663976260,4.26156,2618.6,2618.1,6.87505]
[1729663976261,1.68492388,2618.2,2618.1,3.43752]
[1729663976602,1.68492388,2618.2,2617.9,3.43781]
[1729663976603,2.51252388,2618.2,2617.9,3.43781]
[1729663976912,1.68492388,2618.0,2617.9,3.43781]
[1729663977190,1.68492388,2618.1,2617.9,3.43781]
[1729663978993,1.68492388,2618.1,2618.0,3.43773]
[1729663980002,1.68492388,2618.1,2617.9,3.4378]
[1729663980409,1.68492388,2618.1,2617.9,6.87556]
[1729663980783,1.68492388,2618.1,2617.9,3.43776]
[1729663981187,1.68492388,2618.1,2618.0,3.43773]
[1729663981805,2.51252388,2618.2,2618.0,3.43773]
[1729663982008,0.8276,2618.5,2618.1,3.4376]
[1729663982221,2.51252388,2618.5,2618.3,3.43733]
[1729663982376,3.43677,2618.8,2618.3,3.43733]
[1729663982377,1.68492388,2618.4,2618.3,3.43733]
[1729663986121,1.68492388,2618.4,2618.3,4.25203]
[1729663986821,1.68492388,2618.4,2618.1,3.43753]
[1729663986822,1.68492388,2618.4,2618.2,3.43746]
[1729663987019,1.68492388,2618.3,2618.2,3.43746]
[1729663987990,1.68492388,2618.4,2618.2,3.43746]
[1729663988186,1.68492388,2618.4,2618.2,4.206429]
[1729663988384,1.68492388,2618.4,2618.3,3.43734]
[1729663993527,1.68492388,2618.4,2618.2,4.206429]
[1729663994336,0.8276,2618.7,2618.3,0.07638006]
[1729663994561,1.68492388,2618.6,2618.4,0.8147]
[1729663995326,1.68492388,2618.6,2618.4,4.25189]
[1729663995748,1.68492388,2618.6,2618.5,3.43708]
[1729663996063,3.43643,2619.0,2618.5,3.43708]
[1729663996064,1.68492388,2618.7,2618.5,3.43708]
[1729663997238,1.68492388,2618.7,2618.5,3.86989554]
[1729663997959,3.43643,2619.0,2618.5,3.86989554]
[1729663997960,1.68492388,2619.0,2618.7,3.4368]
[1729663998375,3.43619,2619.2,2618.7,3.4368]
[1729663998376,1.68492388,2618.9,2618.7,3.4368]
[1729663998579,1.68492388,2618.9,2618.6,4.25163]
[1729663998737,1.68492388,2618.9,2618.6,7.6885]
[1729663998939,1.68492388,2619.0,2618.6,7.6885]
[1729664000363,1.68492388,2619.0,2618.7,3.43676]
[1729664000877,1.68492388,2619.0,2618.6,4.25157]
[1729664001241,1.68492388,2618.9,2618.6,4.25157]
[1729664002371,1.68492388,2618.9,2618.6,7.68845]
[1729664002571,1.68492388,2618.9,2618.6,4.25157]
[1729664003279,1.68492388,2618.8,2618.6,4.25157]
[1729664003482,1.68492388,2618.8,2618.6,3.43687]
[1729664004716,2.51252388,2618.7,2618.3,0.8013058]
[1729664004852,1.68492388,2618.4,2618.2,3.4374]
[1729664005179,1.68492388,2618.5,2618.3,3.21]
[1729664005983,1.68492388,2618.5,2618.2,3.4374]
[1729664006685,1.68492388,2618.4,2618.2,3.4374]
[1729664006865,1.68492388,2618.4,2618.1,3.43756]
[1729664007078,1.68492388,2618.4,2618.2,3.21]
[1729664007387,1.68492388,2618.4,2618.2,3.43745]
[1729664007756,1.68492388,2618.5,2618.2,3.43745]
[1729664009962,1.68492388,2618.6,2618.2,6.87485]
[1729664010163,1.68492388,2618.5,2618.2,6.87485]
[1729664010364,1.68492388,2618.5,2618.2,7.80884774]
[1729664010611,0.8276,2618.7,2618.3,3.43729]